bitfinex-derivatives/quotes_BTCF0:USTF0_20251115
["timestamp","ask_amount","ask_price","bid_price","bid_amount"]
[1763188769133,0.06510315,96605.0,96604.0,0.04344]
[1763188769330,0.08675315,96605.0,96604.0,0.04344]
[1763188772038,0.08675315,96605.0,96604.0,0.40424]
[1763188773931,0.08775315,96605.0,96604.0,0.40424]
[1763188775435,0.0433,96601.0,96600.0,0.00219803]
[1763188775629,0.0433,96596.0,96595.0,0.02136]
[1763188776035,0.15841541,96596.0,96595.0,0.02136]
[1763188776744,0.15841541,96596.0,96595.0,0.04439]
[1763188777138,0.15841541,96596.0,96595.0,0.05741]
[1763188777739,0.15941541,96596.0,96595.0,0.05741]
[1763188780141,0.15941541,96596.0,96595.0,0.04439]
[1763188780341,0.0433,96591.0,96590.0,0.05960803]
[1763188780645,0.15434292,96591.0,96590.0,0.05960803]
[1763188781338,0.15534292,96591.0,96590.0,0.05960803]
[1763188782543,0.15434292,96591.0,96590.0,0.05960803]
[1763188783147,0.15534292,96591.0,96590.0,0.05960803]
[1763188788350,0.15634292,96591.0,96590.0,0.05960803]
[1763188791240,0.0433,96590.0,96589.0,0.07055]
[1763188791444,0.4041,96590.0,96589.0,0.07055]
[1763188791640,0.4041,96590.0,96583.0,0.00010102]
[1763188791641,0.0433,96588.0,96583.0,0.00010102]
[1763188792054,0.0433,96588.0,96566.0,0.04464889]
[1763188792055,0.0433,96567.0,96566.0,0.04464889]
[1763188792358,0.15744058,96567.0,96566.0,0.04464889]
[1763188792951,0.1575337,96567.0,96566.0,0.04464889]
[1763188794053,0.1585337,96567.0,96566.0,0.04464889]
[1763188794846,0.1595337,96567.0,96566.0,0.04464889]
[1763188800650,0.5203337,96567.0,96566.0,0.02161889]
[1763188801453,0.5203337,96567.0,96566.0,0.00025889]
[1763188801854,0.5193337,96567.0,96566.0,0.04557889]
[1763188802054,0.5203337,96567.0,96566.0,0.04557889]
[1763188802657,0.5193337,96567.0,96566.0,0.00025889]
[1763188802858,0.5203337,96567.0,96566.0,0.00025889]
[1763188803062,0.5203337,96567.0,96566.0,0.04557889]
[1763188805656,0.5193337,96567.0,96566.0,0.04557889]
[1763188805863,0.5203337,96567.0,96566.0,0.04557889]
[1763188815569,0.4986837,96567.0,96566.0,0.04557889]
[1763188815767,0.5203337,96567.0,96566.0,0.04557889]
[1763188820868,0.4986837,96567.0,96566.0,0.04557889]
[1763188821074,0.1378837,96567.0,96566.0,0.04557889]
[1763188821570,0.1595337,96567.0,96566.0,0.04557889]
[1763188828373,0.1585337,96567.0,96566.0,0.04557889]
[1763188828982,0.1595337,96567.0,96566.0,0.04557889]
[1763188830174,0.1585337,96567.0,96566.0,0.04557889]
[1763188830477,0.1162337,96567.0,96566.0,0.04557889]
[1763188831282,0.1588937,96567.0,96566.0,0.04557889]
[1763188832575,0.1578937,96567.0,96566.0,0.04557889]
[1763188832776,0.1588937,96567.0,96566.0,0.04557889]
[1763188833283,0.1374437,96567.0,96566.0,0.04557889]
[1763188834575,0.1588937,96567.0,96566.0,0.04557889]
[1763188834777,0.1578937,96567.0,96566.0,0.04557889]
[1763188834985,0.1588937,96567.0,96566.0,0.04557889]
[1763188835987,0.1578937,96567.0,96566.0,0.04557889]
[1763188836173,0.1588937,96567.0,96566.0,0.04557889]
[1763188838680,0.1578937,96567.0,96566.0,0.04557889]
[1763188838985,0.1588937,96567.0,96566.0,0.04557889]
[1763188839782,0.1578937,96567.0,96566.0,0.04557889]
[1763188839983,0.1588937,96567.0,96566.0,0.04557889]
[1763188841283,0.1578937,96567.0,96566.0,0.04557889]
[1763188841483,0.1588937,96567.0,96566.0,0.04557889]
[1763188841877,0.1578937,96567.0,96566.0,0.04557889]
[1763188842082,0.1588937,96567.0,96566.0,0.04557889]
[1763188842474,0.1578937,96567.0,96566.0,0.04557889]
[1763188842675,0.1588937,96567.0,96566.0,0.04557889]
[1763188843985,0.1578937,96567.0,96566.0,0.04557889]
[1763188844178,0.1588937,96567.0,96566.0,0.04557889]
[1763188846782,0.1374437,96567.0,96566.0,0.04557889]
[1763188847088,0.1588937,96567.0,96566.0,0.04557889]
[1763188847989,0.1578937,96567.0,96566.0,0.04557889]
[1763188848183,0.1588937,96567.0,96566.0,0.04557889]
[1763188848786,0.1578937,96567.0,96566.0,0.04557889]
[1763188848988,0.1588937,96567.0,96566.0,0.04557889]
[1763188851192,0.1374437,96567.0,96566.0,0.08260393]
[1763188851391,0.1588937,96567.0,96566.0,0.08260393]
[1763188854090,0.1588937,96567.0,96566.0,0.04557889]
[1763188858886,0.1162337,96567.0,96566.0,0.04557889]
[1763188859295,0.1378837,96567.0,96566.0,0.04557889]
[1763188860296,0.1368837,96567.0,96566.0,0.04557889]
[1763188860497,0.1162337,96567.0,96566.0,0.04557889]
[1763188862103,0.1378837,96567.0,96566.0,0.04557889]
[1763188863497,0.1595337,96567.0,96566.0,0.04557889]
[1763188864100,0.1585337,96567.0,96566.0,0.04557889]
[1763188864302,0.1595337,96567.0,96566.0,0.04557889]
[1763188866903,0.1585337,96567.0,96566.0,0.04557889]
[1763188867207,0.1595337,96567.0,96566.0,0.04557889]
[1763188867504,0.1585337,96567.0,96566.0,0.04557889]
[1763188867697,0.1595337,96567.0,96566.0,0.04557889]
[1763188868897,0.1820215,96567.0,96566.0,0.00025889]
[1763188869404,0.1820215,96567.0,96566.0,0.04452889]
[1763188870597,0.1810215,96567.0,96566.0,0.04452889]
[1763188870906,0.1800215,96567.0,96566.0,0.04452889]
[1763188872303,0.1800215,96567.0,96566.0,0.02221889]
[1763188872604,0.1800215,96567.0,96558.0,0.01347]
[1763188872605,0.1367215,96567.0,96544.0,0.01333]
[1763188872799,0.3608,96551.0,96544.0,0.01333]
[1763188872999,0.03729359,96545.0,96536.0,0.01333]
[1763188873202,0.3608,96541.0,96532.0,0.01333]
[1763188873402,0.0224878,96540.0,96532.0,0.01333]
[1763188873599,0.0224878,96539.0,96532.0,0.01333]
[1763188873805,0.3608,96533.0,96532.0,0.01333]
[1763188874003,0.38338655,96533.0,96532.0,0.01333]
[1763188874206,0.50237449,96533.0,96532.0,0.01333]
[1763188875098,0.50237449,96533.0,96532.0,0.05624]
[1763188875302,0.50237449,96533.0,96532.0,0.01333]
[1763188875498,0.50232257,96533.0,96532.0,0.01333]
[1763188875906,0.50232257,96533.0,96526.0,0.00015531]
[1763188876107,0.3608,96530.0,96526.0,0.00015531]
[1763188876297,0.02243588,96529.0,96526.0,0.00015531]
[1763188876503,0.02243588,96528.0,96519.0,0.08495]
[1763188876702,0.3608,96520.0,96519.0,0.08495]
[1763188876902,0.38323588,96520.0,96519.0,0.08495]
[1763188877100,0.50079178,96520.0,96519.0,0.08495]
[1763188877302,0.50079178,96520.0,96519.0,0.06563194]
[1763188877505,0.5008928,96520.0,96519.0,0.06563194]
[1763188877910,0.5008928,96520.0,96519.0,1.94e-06]
[1763188878107,0.5008928,96520.0,96510.0,0.00023881]
[1763188878404,0.3608,96511.0,96510.0,0.00023881]
[1763188878610,0.3833369,96511.0,96510.0,0.00023881]
[1763188878803,0.50151071,96511.0,96510.0,0.00023881]
[1763188879404,0.50151071,96511.0,96510.0,0.00123881]
[1763188879814,0.50151071,96511.0,96492.0,0.01333]
[1763188880003,0.3608,96496.0,96495.0,0.02598343]
[1763188880312,0.47525319,96496.0,96495.0,0.00466343]
[1763188880700,0.47537367,96496.0,96495.0,0.00466343]
[1763188881406,0.47537367,96496.0,96486.0,0.01369349]
[1763188881605,0.3608,96487.0,96486.0,0.01369349]
[1763188882001,0.47232242,96487.0,96486.0,0.01369349]
[1763188882913,0.47242223,96487.0,96486.0,0.01369349]
[1763188883112,0.47242223,96487.0,96486.0,0.05660349]
[1763188883514,0.47242223,96487.0,96486.0,0.05760349]
[1763188885808,0.47242223,96487.0,96486.0,0.01469349]
[1763188886214,0.47242223,96487.0,96480.0,0.01333]
[1763188886418,0.3608,96484.0,96480.0,0.01333]
[1763188886817,0.11133937,96483.0,96480.0,0.01333]
[1763188887813,0.11133937,96483.0,96468.0,0.01333]
[1763188888016,0.3608,96475.0,96468.0,0.01333]
[1763188888212,0.36087903,96475.0,96468.0,0.01333]
[1763188888412,0.47725286,96475.0,96468.0,0.01333]
[1763188888620,0.47725286,96475.0,96474.0,0.03611]
[1763188889115,0.47725286,96475.0,96474.0,0.06004]
[1763188889708,0.47725286,96475.0,96474.0,0.0106349]
[1763188889908,0.47725286,96475.0,96474.0,0.001]
[1763188890307,0.47725286,96475.0,96468.0,0.01333]
[1763188890511,0.3608,96469.0,96468.0,0.01333]
[1763188891019,0.4687315,96469.0,96468.0,0.01333]
[1763188892514,0.46884645,96469.0,96468.0,0.01333]
[1763188893611,0.46884645,96469.0,96462.0,0.01333]
[1763188893812,0.3608,96463.0,96462.0,0.03611]
[1763188894011,0.3608,96463.0,96462.0,0.05904]
[1763188894213,0.47970054,96463.0,96462.0,0.05904]
[1763188894920,0.47970054,96463.0,96462.0,0.06004]
[1763188895622,0.47970054,96463.0,96462.0,0.05904]
[1763188895816,0.47970054,96463.0,96462.0,0.06004]
[1763188896318,0.47970054,96463.0,96450.0,0.01315]
[1763188896510,0.3608,96457.0,96450.0,0.01315]
[1763188896920,0.47786534,96457.0,96450.0,0.01315]
[1763188897116,0.47786534,96457.0,96456.0,0.03593]
[1763188897322,0.47786534,96457.0,96456.0,0.01315]
[1763188897819,0.47786534,96457.0,96456.0,0.05886]
[1763188898020,0.47786534,96457.0,96456.0,0.05986]
[1763188898824,0.47786534,96457.0,96456.0,0.05886]
[1763188903128,0.50037311,96457.0,96450.0,0.01315]
[1763188903430,0.50037311,96457.0,96444.0,0.01315]
[1763188903431,0.1645364,96456.0,96446.0,0.04596921]
[1763188903724,0.3608,96447.0,96446.0,0.04596921]
[1763188903926,0.3608,96447.0,96446.0,0.00025921]
[1763188903927,0.38343209,96447.0,96446.0,0.00025921]
[1763188904117,0.49539873,96447.0,96446.0,0.00025921]
[1763188904525,0.49539873,96447.0,96446.0,0.04596921]
[1763188908123,0.49539873,96447.0,96446.0,0.00025921]
[1763188908325,0.53253555,96447.0,96446.0,0.00025921]
[1763188908725,0.53253555,96447.0,96438.0,0.04571]
[1763188908931,0.3608,96439.0,96438.0,0.05886]
[1763188909230,0.49915086,96439.0,96438.0,0.05886]
[1763188910435,0.50015086,96439.0,96438.0,0.05886]
[1763188910934,0.49915086,96439.0,96438.0,0.05886]
[1763188911144,0.50015086,96439.0,96438.0,0.01315]
[1763188911440,0.53738247,96439.0,96438.0,0.01315]
[1763188911637,0.53838247,96439.0,96438.0,0.01315]
[1763188912039,0.50124565,96439.0,96438.0,0.01315]
[1763188912629,0.50224565,96439.0,96438.0,0.01315]
[1763188912828,0.50231226,96439.0,96438.0,0.01315]
[1763188913237,0.50231226,96439.0,96432.0,0.00588593]
[1763188913444,0.3608,96433.0,96426.0,0.01315]
[1763188913633,0.3608,96427.0,96426.0,0.01315]
[1763188913830,0.38337438,96427.0,96426.0,0.03593]
[1763188914037,0.50249675,96427.0,96426.0,0.03593]
[1763188914238,0.53963542,96427.0,96426.0,0.01315]
[1763188914438,0.53963111,96427.0,96426.0,0.01315]
[1763188914637,0.50249675,96427.0,96426.0,0.01315]
[1763188915144,0.50349675,96427.0,96426.0,0.03593]
[1763188915329,0.50349675,96427.0,96426.0,0.01315]
[1763188915842,0.50449675,96427.0,96426.0,0.01315]
[1763188916337,0.50449675,96427.0,96414.0,0.01315]
[1763188916538,0.50449675,96427.0,96408.0,0.01315]
[1763188916539,0.3608,96416.0,96408.0,0.05886]
[1763188916738,0.39792369,96409.0,96408.0,0.03593]
[1763188916945,0.42049807,96409.0,96408.0,0.03593]
[1763188917138,0.49904775,96409.0,96408.0,0.03593]
[1763188918048,0.49904775,96409.0,96408.0,0.01315]
[1763188918541,0.49904775,96409.0,96402.0,0.01315]
[1763188918738,0.3608,96403.0,96402.0,0.01315]
[1763188918945,0.38337438,96403.0,96402.0,0.01315]
[1763188919241,0.5028698,96403.0,96402.0,0.01315]
[1763188920341,0.65855534,96403.0,96390.0,0.01315]
[1763188920543,0.3608,96391.0,96390.0,0.01315]
[1763188920846,0.50282394,96391.0,96390.0,0.01315]
[1763188921044,0.53990757,96391.0,96390.0,0.01315]
[1763188921542,0.50282394,96391.0,96390.0,0.01315]
[1763188921843,0.50270138,96391.0,96384.0,0.01268]
[1763188922042,0.3608,96385.0,96384.0,0.01268]
[1763188922243,0.42054582,96385.0,96384.0,0.01268]
[1763188922439,0.50019641,96385.0,96384.0,0.01268]
[1763188922849,0.50019641,96385.0,96378.0,0.01268]
[1763188923146,0.03702276,96381.0,96378.0,0.01268]
[1763188923343,0.02267746,96381.0,96378.0,0.01268]
[1763188923532,0.13610051,96381.0,96375.0,0.00466924]
[1763188924849,0.13610051,96381.0,96380.0,0.04523079]
[1763188925237,0.13610051,96381.0,96380.0,0.04303276]
[1763188925745,0.13610051,96381.0,96380.0,8.276e-05]
[1763188926941,0.23610051,96381.0,96380.0,8.276e-05]
[1763188927247,0.23611645,96381.0,96376.0,0.01268]
[1763188927547,0.3608,96377.0,96376.0,0.01268]
[1763188927741,0.38349233,96377.0,96376.0,0.01268]
[1763188927947,0.49521211,96377.0,96376.0,0.01268]
[1763188928341,0.49521211,96377.0,96376.0,0.05563]
[1763188929645,0.49521211,96377.0,96376.0,0.01268]
[1763188929841,0.49521211,96377.0,96375.0,0.00466924]
[1763188930042,0.02257438,96376.0,96375.0,0.00466924]
[1763188930444,0.13421959,96376.0,96375.0,0.00466924]
[1763188930952,0.13421959,96376.0,96366.0,0.01293943]
[1763188931151,0.3608,96367.0,96366.0,0.01293943]
[1763188931447,0.49210776,96367.0,96366.0,0.05742943]
[1763188932951,0.49210776,96367.0,96366.0,0.03486943]
[1763188933850,0.49210776,96367.0,96366.0,0.05742943]
[1763188937453,0.4919822,96367.0,96355.0,0.03461]
[1763188937751,0.4919822,96367.0,96355.0,0.01268]
[1763188937752,0.3608,96356.0,96355.0,0.01268]
[1763188937953,0.38349073,96356.0,96355.0,0.01268]
[1763188938142,0.49495333,96356.0,96355.0,0.01268]
[1763188938546,0.50519047,96356.0,96355.0,0.01268]
[1763188938954,0.50519047,96356.0,96348.0,0.01281]
[1763188939160,0.3608,96349.0,96348.0,0.01281]
[1763188939449,0.50308522,96349.0,96348.0,0.03474]
[1763188939646,0.50308522,96349.0,96348.0,0.01281]
[1763188942456,0.50308522,96349.0,96348.0,0.0573]
[1763188945159,0.55877076,96349.0,96348.0,0.0573]
[1763188946160,0.50308522,96349.0,96348.0,0.0573]
[1763188949562,0.55879614,96349.0,96348.0,0.0573]
[1763188951571,0.50308522,96349.0,96348.0,0.0573]
[1763188952758,0.14228522,96349.0,96348.0,0.0573]
[1763188953065,0.10728522,96349.0,96348.0,0.0573]
[1763188953865,0.10737293,96349.0,96348.0,0.0573]
[1763188955166,0.03720434,96359.0,96350.0,0.00219803]
[1763188955367,0.10683918,96360.0,96357.0,0.3608]
[1763188955564,0.11877014,96358.0,96357.0,0.3608]
[1763188955866,0.11579927,96363.0,96360.0,0.00219803]
[1763188956264,5.697e-05,96362.0,96360.0,0.00219803]
[1763188956470,0.04441697,96362.0,96360.0,0.00219803]
[1763188956660,0.16015927,96361.0,96360.0,0.00219803]
[1763188958267,0.16115927,96361.0,96360.0,0.00219803]
[1763188958668,0.16215927,96361.0,96360.0,0.00219803]
[1763188964964,0.18451089,96361.0,96360.0,0.00219803]
[1763188965867,0.14015089,96361.0,96360.0,0.00219803]
[1763188966369,0.11779927,96361.0,96360.0,0.00219803]
[1763188966572,0.14011927,96361.0,96360.0,0.00219803]
[1763188967369,0.16215927,96361.0,96360.0,0.00219803]
[1763188968165,0.13911927,96361.0,96360.0,0.00219803]
[1763188968365,0.16215927,96361.0,96360.0,0.00219803]
[1763188969165,0.16115927,96361.0,96360.0,0.00219803]
[1763188969368,0.16215927,96361.0,96360.0,0.00219803]
[1763188970673,0.16215927,96361.0,96335.0,0.00467118]
[1763188970674,0.05778,96342.0,96341.0,0.3608]
[1763188971174,0.16771296,96342.0,96341.0,0.3608]
[1763188971675,0.04436,96341.0,96340.0,0.00219803]
[1763188971861,0.04436,96341.0,96335.0,0.00467118]
[1763188971862,0.04436,96336.0,96335.0,0.00467118]
[1763188972371,0.15582295,96336.0,96335.0,0.00467118]
[1763188973774,0.04436,96336.0,96335.0,0.00467118]
[1763188974675,0.05783697,96342.0,96335.0,0.00467118]
[1763188974874,0.05783697,96342.0,96341.0,0.3608]
[1763188975276,0.17579895,96342.0,96341.0,0.3608]
[1763188976173,0.15375895,96342.0,96341.0,0.3608]
[1763188976375,0.17579895,96342.0,96341.0,0.3608]
[1763188978173,0.04468,96341.0,96340.0,0.00219803]
[1763188978375,0.04373,96324.0,96323.0,0.04472599]
[1763188978578,0.04373,96324.0,96298.0,0.13067072]
[1763188978579,0.05724,96313.0,96304.0,0.3608]
[1763188978775,0.05724,96313.0,96310.0,0.00219803]
[1763188979077,0.17665502,96313.0,96310.0,0.00219803]
[1763188981671,0.17765502,96313.0,96310.0,0.00219803]
[1763188982167,0.17765502,96313.0,96304.0,0.3608]
[1763188983181,0.17865502,96313.0,96304.0,0.3608]
[1763188983578,0.17865502,96313.0,96310.0,0.00219803]
[1763188983880,0.17765502,96313.0,96310.0,0.00219803]
[1763188984076,0.17665502,96313.0,96310.0,0.00219803]
[1763188985380,0.17765502,96313.0,96310.0,0.00219803]
[1763188985782,0.17765502,96313.0,96304.0,0.3608]
[1763188988082,0.17765502,96313.0,96295.0,1.02003312]
[1763188988577,0.17765502,96313.0,96295.0,0.65923312]
[1763188988578,0.04373,96296.0,96295.0,0.65923312]
[1763188989082,0.16307496,96296.0,96295.0,0.65923312]
[1763188989375,0.16319148,96296.0,96295.0,0.65923312]
[1763188989681,0.16319148,96296.0,96295.0,0.00467312]
[1763188990080,0.16419148,96296.0,96295.0,0.00467312]
[1763188991484,0.16319148,96296.0,96295.0,0.00467312]
[1763188992688,0.16319148,96296.0,96295.0,0.00342312]
[1763188998681,0.04404,96287.0,96284.0,0.3608]
[1763188998877,0.04404,96287.0,96275.0,0.3608]
[1763188999080,0.04404,96287.0,96265.0,0.05578528]
[1763188999081,0.1582734,96287.0,96265.0,0.6548]
[1763189000387,0.1582734,96287.0,96264.0,0.3608]
[1763189000588,0.1582734,96287.0,96266.0,0.65484]
[1763189000778,0.1582734,96287.0,96273.0,0.3608]
[1763189002289,0.1582734,96287.0,96264.0,0.3608]
[1763189002290,0.04404,96265.0,96264.0,0.3608]
[1763189002490,0.04415606,96265.0,96264.0,0.3608]
[1763189002692,0.01919659,96265.0,96264.0,0.3608]
[1763189002889,0.04068659,96265.0,96264.0,0.3608]
[1763189004492,0.04068659,96265.0,96264.0,0.3618]
[1763189004687,0.04068659,96265.0,96264.0,0.001]
[1763189006488,0.1504141,96265.0,96264.0,0.001]
[1763189006792,0.1504141,96265.0,96255.0,0.00467506]
[1763189006793,0.04404,96256.0,96255.0,0.00467506]
[1763189007086,0.1543509,96256.0,96255.0,0.00467506]
[1763189008893,0.1543509,96256.0,96255.0,0.00567506]
[1763189015486,0.1103109,96256.0,96255.0,0.00567506]
[1763189015685,0.023,96256.0,96255.0,0.00567506]
[1763189016799,0.04401,96256.0,96255.0,0.00567506]
[1763189018592,0.01282,96258.0,96255.0,0.00567506]
[1763189018997,0.03582,96258.0,96255.0,0.00567506]
[1763189019201,0.04401,96256.0,96255.0,0.00567506]
[1763189022999,0.16350178,96256.0,96255.0,0.00567506]
[1763189023197,0.16350178,96256.0,96250.0,0.00219803]
[1763189023404,0.04401,96247.0,96246.0,0.00033285]
[1763189023802,0.16350178,96247.0,96246.0,0.00033285]
[1763189026810,0.52430178,96247.0,96246.0,0.00033285]
[1763189027009,0.05735,96236.0,96235.0,0.3608]
[1763189027403,0.17384566,96236.0,96235.0,0.3608]
[1763189028007,0.17396831,96236.0,96235.0,0.3608]
[1763189028208,0.17396831,96236.0,96235.0,0.3618]
[1763189036317,0.00012265,96236.0,96235.0,0.3618]
[1763189036815,0.02312265,96236.0,96235.0,0.3618]
[1763189037218,0.00012265,96236.0,96235.0,0.3618]
[1763189038627,0.04605847,96257.0,96256.0,0.02289]
[1763189038830,0.34351158,96266.0,96260.0,0.00219803]
[1763189039128,0.04473,96261.0,96260.0,0.00219803]
[1763189039319,0.06710521,96261.0,96260.0,0.00219803]
[1763189039523,0.17663111,96261.0,96260.0,0.00219803]
[1763189039721,0.05795,96252.0,96251.0,0.00015582]
[1763189039930,0.41875,96252.0,96251.0,0.00015582]
[1763189040129,0.52815148,96252.0,96251.0,0.00015582]
[1763189041520,0.52815148,96252.0,96251.0,0.00115582]
[1763189042126,0.51493148,96252.0,96251.0,0.04608582]
[1763189042631,0.51493148,96252.0,96251.0,0.00115582]
[1763189043332,0.52815148,96252.0,96251.0,0.00115582]
[1763189043934,0.55051989,96252.0,96251.0,0.00115582]
[1763189044134,0.55051989,96252.0,96251.0,0.00077851]
[1763189044330,0.04473,96217.0,96216.0,0.04493]
[1763189044526,0.0448362,96217.0,96216.0,0.04493]
[1763189046233,0.0448362,96217.0,96216.0,0.40573]
[1763189049423,0.0448362,96217.0,96216.0,0.04493]
[1763189050833,0.0458362,96217.0,96216.0,0.04493]
[1763189051433,0.0241562,96217.0,96216.0,0.04493]
[1763189052142,0.0469662,96217.0,96216.0,0.04493]
[1763189052433,0.0459662,96217.0,96216.0,0.04493]
[1763189054938,0.15994473,96217.0,96216.0,0.02289]
[1763189055237,0.15994473,96217.0,96216.0,0.04604]
[1763189056039,0.15994473,96217.0,96216.0,0.02289]
[1763189056540,0.04417,96216.0,96215.0,0.004677]
[1763189056741,0.05477,96216.0,96215.0,0.004677]
[1763189056942,0.16821791,96216.0,96215.0,0.004677]
[1763189059137,0.19058214,96216.0,96215.0,0.004677]
[1763189059336,0.04417,96193.0,96192.0,0.04501135]
[1763189059535,0.04424488,96193.0,96192.0,0.02186135]
[1763189059839,0.16327133,96193.0,96192.0,0.02186135]
[1763189060337,0.16327133,96193.0,96192.0,0.00012135]
[1763189062744,0.16327133,96193.0,96192.0,1.35e-06]
[1763189064440,0.18558201,96193.0,96192.0,1.35e-06]
[1763189064740,0.18558167,96193.0,96192.0,1.35e-06]
[1763189065341,0.04417,96167.0,96166.0,0.00025997]
[1763189065541,0.04417,96146.0,96145.0,0.05858]
[1763189065743,0.7216,96167.0,96145.0,0.05858]
[1763189065744,0.000156,96155.0,96154.0,0.04489]
[1763189066440,0.10904752,96165.0,96154.0,0.04489]
[1763189066641,0.10904752,96165.0,96164.0,0.04489]
[1763189066834,0.3608,96177.0,96159.0,0.37449]
[1763189066835,0.10720346,96174.0,96160.0,0.00219803]
[1763189067041,0.15137346,96170.0,96169.0,0.04489]
[1763189067241,0.04417,96170.0,96169.0,0.04489]
[1763189067443,0.15842035,96170.0,96169.0,0.04489]
[1763189067637,0.11434487,96170.0,96169.0,0.04489]
[1763189067844,9.452e-05,96170.0,96169.0,0.04489]
[1763189069147,0.00109452,96170.0,96169.0,0.04489]
[1763189070744,9.452e-05,96170.0,96169.0,0.04489]
[1763189070941,0.04507452,96170.0,96169.0,0.04489]
[1763189071243,0.04507452,96170.0,96160.0,0.000156]
[1763189071244,0.04398,96161.0,96160.0,0.000156]
[1763189071547,0.52162064,96161.0,96160.0,0.04603403]
[1763189071752,0.16082064,96161.0,96160.0,0.05922403]
[1763189072551,0.52162064,96161.0,96160.0,0.000156]
[1763189074646,0.04398,96142.0,96141.0,0.40448]
[1763189074852,0.0440981,96142.0,96141.0,0.04368]
[1763189075039,0.15681244,96142.0,96141.0,0.04368]
[1763189076543,0.15681244,96142.0,96141.0,0.0216]
[1763189076744,0.04398,96141.0,96140.0,0.00219803]
[1763189077148,0.15739247,96141.0,96140.0,0.00219803]
[1763189077649,0.15739247,96141.0,96140.0,0.04587803]
[1763189078041,0.13464247,96141.0,96140.0,0.04587803]
[1763189078850,0.15739247,96141.0,96140.0,0.04587803]
[1763189082857,0.13464247,96141.0,96140.0,0.04587803]
[1763189083052,0.11341247,96141.0,96140.0,0.04587803]
[1763189083853,0.000156,96151.0,96140.0,0.00219803]
[1763189084055,0.000156,96151.0,96150.0,0.04368]
[1763189084256,0.000156,96151.0,96150.0,0.04587803]
[1763189084452,0.11181148,96151.0,96150.0,0.04587803]
[1763189086259,0.15579148,96151.0,96150.0,0.04587803]
[1763189087856,0.15579148,96151.0,96150.0,0.02379803]
[1763189088063,0.15579148,96151.0,96150.0,0.00219803]
[1763189089654,0.15579148,96151.0,96150.0,0.04587803]
[1763189089963,0.13304148,96151.0,96150.0,0.04587803]
[1763189090159,0.11181148,96151.0,96150.0,0.04587803]
[1763189090354,0.000156,96151.0,96150.0,0.04587803]
[1763189091659,0.3608,96164.0,96150.0,0.04587803]
[1763189091857,0.40478,96164.0,96163.0,0.04368]
[1763189092054,0.40443217,96164.0,96163.0,0.04368]
[1763189092255,0.48093789,96164.0,96163.0,0.04368]
[1763189092854,0.12013789,96164.0,96163.0,0.04368]
[1763189093257,0.000156,96173.0,96172.0,0.04368]
[1763189093457,0.02257061,96173.0,96172.0,0.04368]
[1763189093764,0.000156,96173.0,96172.0,0.04368]
[1763189096160,0.04398,96185.0,96184.0,0.04368]
[1763189096360,0.06640215,96185.0,96184.0,0.04368]
[1763189096559,0.17978961,96185.0,96184.0,0.04368]
[1763189096760,0.17978961,96185.0,96184.0,0.0216]
[1763189096961,0.04398,96181.0,96180.0,0.02379803]
[1763189097163,0.06640215,96181.0,96180.0,0.04587803]
[1763189097369,0.18488526,96181.0,96180.0,0.04587803]
[1763189100071,0.045,96172.0,96171.0,0.360956]
[1763189100262,0.06739953,96172.0,96171.0,0.000156]
[1763189100568,0.045,96152.0,96151.0,0.40402]
[1763189100955,0.1630744,96152.0,96151.0,0.40402]
[1763189103263,0.5238744,96152.0,96151.0,0.04322]
[1763189103459,0.045,96151.0,96150.0,0.00219803]
[1763189103671,0.045,96151.0,96150.0,0.02376803]
[1763189103871,0.15674944,96151.0,96150.0,0.04541803]
[1763189109278,0.15674944,96151.0,96142.0,0.000156]
[1763189109279,0.045,96143.0,96142.0,0.000156]
[1763189109473,0.4058,96143.0,96142.0,0.000156]
[1763189109677,0.52402531,96143.0,96142.0,0.000156]
[1763189110975,0.5465538,96143.0,96142.0,0.000156]
[1763189112774,0.05368,96136.0,96120.0,0.01262]
[1763189113078,0.16218064,96136.0,96126.0,0.00026008]
[1763189114273,0.15449064,96136.0,96135.0,0.04957089]
[1763189115080,0.16218064,96136.0,96135.0,0.00468089]
[1763189115382,0.18468361,96136.0,96135.0,0.00468089]
[1763189115581,0.18468426,96136.0,96135.0,8.9e-07]
[1763189116379,0.18468426,96136.0,96094.0,0.01035323]
[1763189116380,0.04606,96096.0,96094.0,0.01035323]
[1763189116573,0.42004,96096.0,96094.0,0.01035323]
[1763189116777,0.42004,96096.0,96095.0,0.04957284]
[1763189116778,0.52056673,96096.0,96095.0,0.04957284]
[1763189116977,0.13664673,96096.0,96095.0,0.04957284]
[1763189117272,0.15976673,96096.0,96095.0,0.04957284]
[1763189117473,0.15988157,96096.0,96095.0,0.04957284]
[1763189117876,0.16088157,96096.0,96095.0,0.04957284]
[1763189118583,0.15988157,96096.0,96095.0,0.04957284]
[1763189118980,0.11382157,96096.0,96095.0,0.04957284]
[1763189120378,0.15988157,96096.0,96095.0,0.04957284]
[1763189123979,0.11382157,96096.0,96095.0,0.04957284]
[1763189124182,0.00011484,96096.0,96095.0,0.04957284]
[1763189125884,0.00015609,96105.0,96104.0,0.04489]
[1763189126287,0.39301609,96118.0,96117.0,0.04489]
[1763189126679,0.50086768,96118.0,96117.0,0.04489]
[1763189126882,0.16105159,96118.0,96117.0,0.04489]
[1763189127187,0.07805159,96118.0,96117.0,0.04489]
[1763189127678,0.34314768,96137.0,96126.0,0.04392]
[1763189127879,0.34314768,96137.0,96130.0,0.00219803]
[1763189128177,0.1200079,96136.0,96130.0,0.00219803]
[1763189128384,0.1200079,96136.0,96130.0,0.04634803]
[1763189129384,0.1200079,96136.0,96135.0,0.04415]
[1763189130192,0.1200079,96136.0,96135.0,0.02274]
[1763189130590,0.1220079,96136.0,96135.0,0.02274]
[1763189130982,0.1220079,96136.0,96135.0,0.04415]
[1763189132182,0.00015609,96143.0,96135.0,0.40495]
[1763189132384,0.00015609,96143.0,96142.0,0.04415]
[1763189132687,0.3608,96168.0,96142.0,0.04415]
[1763189132886,0.04395,96161.0,96160.0,0.04634803]
[1763189133286,0.16191244,96161.0,96160.0,0.04634803]
[1763189134387,0.04395,96152.0,96151.0,0.360956]
[1763189134581,0.04395,96152.0,96151.0,0.000156]
[1763189134781,0.15935465,96152.0,96151.0,0.000156]
[1763189136789,0.16035465,96152.0,96151.0,0.000156]
[1763189137580,0.15935465,96152.0,96151.0,0.000156]
[1763189139086,0.16035465,96152.0,96151.0,0.000156]
[1763189139689,0.18283197,96152.0,96151.0,0.000156]
[1763189140084,0.16035465,96152.0,96151.0,0.000156]
[1763189140284,0.1828313,96152.0,96151.0,0.000156]
[1763189140685,0.1828313,96152.0,96151.0,0.044306]
[1763189140988,0.1828313,96152.0,96136.0,0.3608]